bitfinex-derivatives/quotes_SOLF0:USTF0_20250310
["timestamp","ask_amount","ask_price","bid_price","bid_amount"]
[1741620914887,2.5759,124.15,123.97,198.62393335]
[1741620915086,8.0592,124.11,124.02,8.0641]
[1741620915289,0.05893322,124.05,124.03,46.39576867]
[1741620915590,0.05900295,124.05,124.03,52.96393335]
[1741620915890,46.34,124.14,124.04,10.74363335]
[1741620916794,0.06084009,124.1,124.08,0.05518296]
[1741620917782,0.06084009,124.1,123.97,192.0]
[1741620917783,0.06084009,124.1,124.01,46.32]
[1741620917983,46.34,124.14,124.01,46.32]
[1741620918794,46.34,124.14,124.01,238.32]
[1741620918998,0.06156149,124.09,124.06,0.0512768]
[1741620919188,0.06156149,124.09,124.05,46.32]
[1741620919388,0.06156149,124.09,124.06,4.30474414]
[1741620920393,0.06156149,124.09,124.06,0.05454414]
[1741620920890,46.3,124.08,124.06,0.05454414]
[1741620921092,266.08,124.07,123.98,66.1195]
[1741620921396,271.2991,124.07,123.95,46.3]
[1741620921795,46.3,124.06,123.95,46.3]
[1741620921995,8.0648,124.02,123.95,54.369]
[1741620922297,0.05408547,124.0,123.97,0.06131532]
[1741620922497,8.065,124.02,123.96,6.57606758]
[1741620922689,0.05174043,124.0,123.97,0.06144558]
[1741620922888,46.3,124.06,123.97,6.57606758]
[1741620923095,0.06022564,124.0,123.97,6.6315184]
[1741620923290,46.3,124.06,123.97,6.57606758]
[1741620923587,46.3,124.05,123.96,6.57606758]
[1741620923791,0.05130638,124.03,124.0,0.05211595]
[1741620924193,8.0653,124.01,124.0,0.05211595]
[1741620924391,0.05130638,124.03,123.94,12.3492]
[1741620924591,46.3,124.02,123.94,12.3492]
[1741620924788,46.3,124.02,123.92,46.3]
[1741620924995,46.3,124.02,123.95,6.58961759]
[1741620925200,8.0685,123.96,123.95,6.58961759]
[1741620925502,8.0685,123.96,123.94,0.05587561]
[1741620925991,453.8279,124.06,123.95,46.3]
[1741620926199,266.1,124.06,123.95,46.3]
[1741620926996,266.1,124.06,123.9,4.0686]
[1741620927197,0.05117902,124.02,123.99,0.05321405]
[1741620927394,266.1,124.06,123.96,68.58587681]
[1741620927595,266.1,124.06,123.96,62.0]
[1741620928005,8.0634,124.04,123.96,62.0]
[1741620928197,266.12,124.12,123.97,4.256]
[1741620928392,267.7246,124.12,123.98,46.3]
[1741620928697,8.0633,124.04,124.03,0.05385286]
[1741620928999,46.3,124.05,123.98,6.57746395]
[1741620929202,266.12,124.04,123.98,6.57746395]
[1741620929399,267.7246,124.04,123.98,6.57746395]
[1741620929703,1.0113,124.03,123.9,46.3]
[1741620930097,0.05875725,123.98,123.95,0.05099557]
[1741620930301,46.33875725,123.98,123.9,46.3]
[1741620930601,46.28,123.98,123.95,0.05852038]
[1741620930800,46.28,124.01,123.95,0.05852038]
[1741620931008,0.05745601,123.98,123.9,46.3]
[1741620931210,46.28,124.02,123.97,0.05152685]
[1741620931397,267.7246,124.04,123.94,46.28]
[1741620931704,8.0666,123.99,123.98,0.05180454]
[1741620933605,8.0696,123.95,123.92,4.0838]
[1741620933802,46.28,124.01,123.92,4.0838]
[1741620934102,8.0694,123.95,123.92,4.0838]
[1741620934299,46.28,124.01,123.92,4.0838]
[1741620934506,46.28,124.02,123.92,4.0838]
[1741620934808,0.05297872,123.98,123.96,0.05365054]
[1741620935203,8.12077872,123.98,123.96,0.05365054]
[1741620935604,0.05297872,123.98,123.96,0.05365054]
[1741620935811,8.0679,123.97,123.96,0.05365054]
[1741620936009,8.0679,123.97,123.96,62.05365054]
[1741620936209,8.12047872,123.98,123.96,62.05365054]
[1741620936412,0.05297872,123.98,123.96,62.05365054]
[1741620936710,266.12,124.04,123.96,62.05365054]
[1741620936899,266.12,124.04,123.98,8.0669]
[1741620936900,8.065,124.02,123.98,8.0669]
[1741620937104,266.12,124.04,123.98,46.28]
[1741620938013,0.05573854,124.02,124.0,0.05936339]
[1741620938913,8.0653,124.01,124.0,0.05936339]
[1741620939508,8.0653,124.01,123.85,83.26893469]
[1741620939509,8.0699,123.94,123.85,83.26893469]
[1741620939812,46.28,124.01,123.83,547.29422664]
[1741620939813,46.28,123.96,123.9,20.94258745]
[1741620940009,46.28,123.96,123.92,8.0708]
[1741620940206,1.0169,124.01,123.91,6.60377646]
[1741620940408,46.28,124.0,123.9,20.94258745]
[1741620940806,0.05630776,123.96,123.94,0.05127258]
[1741620941107,8.0692,123.95,123.94,0.05127258]
[1741620941412,312.47630776,123.96,123.9,20.94258745]
[1741620941810,1.6684,123.95,123.89,83.26893469]
[1741620942214,8.0724,123.9,123.89,83.26893469]
[1741620942516,54.3324,123.9,123.89,83.26893469]
[1741620943416,54.3324,123.9,123.89,68.15683469]
[1741620943613,54.3324,123.9,123.89,7.51124189]
[1741620943917,8.0731,123.89,123.88,129.17387521]
[1741620944417,8.0731,123.89,123.88,116.85037521]
[1741620944814,8.0731,123.89,123.88,103.00577521]
[1741620945018,54.3531,123.89,123.88,46.08917521]
[1741620945323,8.0731,123.89,123.88,46.08917521]
[1741620945713,8.0731,123.89,123.88,6.19387521]
[1741620945920,8.0731,123.89,123.88,7.521e-05]
[1741620949523,0.05474294,123.91,123.88,7.521e-05]
[1741620950317,46.28,123.98,123.88,46.28007521]
[1741620950519,46.28,124.01,123.88,46.28007521]
[1741620950722,46.28,124.01,123.88,46.28]
[1741620951117,8.0679,123.97,123.88,46.28]
[1741620951322,44.44602632,124.02,123.88,46.28]
[1741620951622,8.0668,123.99,123.95,8.0686]
[1741620951823,0.06109981,123.96,123.93,46.28]
[1741620952019,44.44602632,124.02,123.93,46.28]
[1741620952227,312.6,124.03,123.93,46.33995008]
[1741620952421,0.05212719,123.99,123.93,46.28]
[1741620952621,46.31212719,123.99,123.97,2.748e-05]
[1741620952925,46.26,123.99,123.86,46.26]
[1741620953131,46.26,123.99,123.87,62.0]
[1741620953429,8.0733,123.89,123.85,8.1776]
[1741620953825,0.06011649,123.88,123.86,0.05845461]
[1741620955224,266.28,123.92,123.86,48.73845461]
[1741620955419,266.28,123.92,123.86,46.31845461]
[1741620955832,8.0719,123.91,123.86,54.39305461]
[1741620956028,266.28,123.92,123.86,46.31845461]
[1741620956224,266.28,123.92,123.87,62.0]
[1741620956428,0.05472973,123.9,123.87,62.0]
[1741620957429,0.05472973,123.9,123.87,70.074]
[1741620957632,266.28,123.92,123.87,108.26]
[1741620957931,312.54,123.92,123.86,0.05845461]
[1741620958431,8.0744,123.87,123.86,0.05845461]
[1741620963233,0.05206797,123.88,123.8,62.0]
[1741620963429,8.0767,123.84,123.8,70.0787]
[1741620963630,46.26,123.87,123.8,62.0]
[1741620963833,46.26,123.87,123.81,8.0782]
[1741620964034,46.26,123.87,123.8,62.0]
[1741620964435,0.06196596,123.85,123.82,0.05804102]
[1741620965527,266.28,123.92,123.86,8.0745]
[1741620965730,266.28,123.92,123.83,4.0125]
[1741620966733,266.38,123.98,123.86,0.05925958]
[1741620966933,266.38,123.98,123.87,46.26]
[1741620967136,310.80602632,124.0,123.87,46.26]
[1741620967334,8.0702,123.94,123.87,46.26]
[1741620967730,310.80602632,124.0,123.92,8.0705]
[1741620967731,8.0689,123.96,123.92,8.0705]
[1741620967938,0.05587136,123.92,123.89,0.0610245]
[1741620968131,310.80602632,124.0,123.9,46.24]
[1741620968333,8.0673,123.98,123.94,8.0694]
[1741620968536,266.36,124.0,123.9,46.24]
[1741620969235,266.36,124.0,123.94,0.0574549]
[1741620969236,0.05390844,123.96,123.94,0.0574549]
[1741620970043,0.1219,124.04,123.94,108.2974549]
[1741620970242,266.36,124.05,123.94,108.24]
[1741620971139,0.05435964,124.01,123.98,0.0578584]
[1741620971732,8.0666,123.99,123.98,0.0578584]
[1741620972032,46.27435964,124.01,123.9,4.2292]
[1741620972235,0.1086,124.0,123.9,4.2292]
[1741620973336,0.1086,124.0,123.94,0.05147682]
[1741620973539,0.05479071,123.96,123.94,7.682e-05]
[1741620973745,266.28,123.95,123.94,7.682e-05]
[1741620973938,274.3492,123.95,123.94,7.682e-05]
[1741620975445,266.28,123.95,123.94,7.682e-05]
[1741620975640,0.05479071,123.96,123.94,46.22007682]
[1741620975839,266.28,124.01,123.94,46.22007682]
[1741620976441,266.28,124.01,123.99,8.0662]
[1741620976639,266.28,124.01,123.94,46.22]
[1741620976938,0.05281348,123.99,123.96,0.05895597]
[1741620977543,8.0679,123.97,123.96,0.05895597]
[1741620980544,8.0705,123.93,123.92,4.2641]
[1741620980751,312.44,123.93,123.88,3.9885]
[1741620981149,8.0724,123.9,123.88,3.9885]
[1741620981450,312.44,123.93,123.88,3.9885]
[1741620981947,0.06058888,123.92,123.89,0.05547632]
[1741620982448,8.0729,123.9,123.89,0.05547632]
[1741620982643,0.06058888,123.92,123.89,0.05547632]
[1741620982842,8.072,123.91,123.89,0.05547632]
[1741620983039,0.06058888,123.92,123.89,0.05547632]
[1741620983251,8.0724,123.9,123.89,0.05547632]
[1741620983854,0.06058888,123.92,123.88,3.9885]
[1741620984053,46.18,123.91,123.86,4.2641]
[1741620984451,8.075,123.86,123.85,4.3342]
[1741620984650,8.075,123.86,123.83,8.0769]
[1741620984953,46.18,123.91,123.8,8.3803]
[1741620985148,0.05943288,123.86,123.83,0.05973114]
[1741620985354,0.05943288,123.86,123.85,8.0757]
[1741620985548,0.05943288,123.86,123.8,8.3803]
[1741620985549,0.05943288,123.86,123.83,0.05224217]
[1741620985743,0.05943288,123.86,123.85,8.0757]
[1741620985948,46.18,123.91,123.83,0.05224217]
[1741620986150,46.18,123.91,123.83,62.0]
[1741620986341,46.18,123.91,123.84,8.076]
[1741620986753,8.0749,123.87,123.83,62.0]
[1741620986954,0.05536015,123.86,123.84,0.06162696]
[1741620987255,8.0736,123.89,123.84,0.06162696]
[1741620987553,0.05380224,123.86,123.84,0.06162696]
[1741620987852,46.18,123.91,123.86,8.0745]
[1741620988247,46.18,123.91,123.83,62.0]
[1741620988248,0.06126859,123.9,123.87,0.05136615]
[1741620988745,0.06126859,123.9,123.87,6.615e-05]
[1741620988952,8.0769,123.84,123.8,16.4589]
[1741620989154,46.18,123.87,123.8,8.3803]
[1741620989341,46.18,123.86,123.8,8.3803]
[1741620989542,8.0783,123.81,123.8,8.3803]
[1741620989748,46.18,123.83,123.8,4.3302]
[1741620990048,46.24214863,123.83,123.8,4.38136274]
[1741620990843,0.06214863,123.83,123.8,4.38136274]
[1741620991048,8.13964863,123.83,123.8,4.38136274]
[1741620991449,0.06214863,123.83,123.8,4.38136274]
[1741620991654,8.13954863,123.83,123.8,4.38136274]
[1741620991849,0.06214863,123.83,123.8,4.38136274]
[1741620992249,46.18,123.89,123.8,4.38136274]
[1741620992455,46.18,123.89,123.8,4.3302]
[1741620993347,0.0523376,123.86,123.83,0.05774064]
[1741620993553,46.18,123.85,123.83,4.064e-05]
[1741620993949,8.0763,123.84,123.83,4.064e-05]
[1741620994155,46.18,123.85,123.8,4.16085876]
[1741620994356,46.18,123.85,123.8,5.876e-05]
[1741620994558,46.18,123.85,123.74,4.1621]
[1741620995067,187.7279,123.84,123.64,84.58144335]
[1741620995360,0.06000049,123.75,123.73,0.05190386]
[1741620995554,312.54,123.74,123.67,8.0872]
[1741620995757,46.16,123.73,123.65,62.0]
[1741620996159,8.0855,123.7,123.69,0.05789914]
[1741620996354,8.144783,123.7,123.69,0.05789914]
[1741620996757,8.144783,123.7,123.69,9.914e-05]
[1741620997656,0.059283,123.7,123.69,9.914e-05]
[1741620998165,8.144783,123.7,123.69,9.914e-05]
[1741620999370,187.7279,123.9,123.69,507.12009914]
[1741620999564,266.52,123.85,123.7,46.18]
[1741620999765,8.0776,123.83,123.7,50.438]
[1741621000163,46.18,123.83,123.71,4.3217]
[1741621000466,46.18,123.83,123.75,0.05168585]
[1741621000467,0.06210788,123.78,123.75,0.05168585]
[1741621000664,266.56,123.77,123.75,0.05168585]
[1741621000861,266.56,123.77,123.71,4.3217]
[1741621001064,266.56,123.77,123.75,0.05996775]
[1741621001264,266.61803352,123.77,123.69,46.18]
[1741621001568,266.56,123.77,123.75,0.05845922]
[1741621001758,0.05857659,123.74,123.64,8.5797]
[1741621001963,266.56,123.77,123.65,46.18]
[1741621002164,0.05413582,123.7,123.68,0.05168998]
[1741621002462,266.56,123.77,123.69,62.0]
[1741621002666,266.56,123.77,123.69,108.18]
[1741621003463,0.05772223,123.74,123.72,0.06087984]
[1741621005267,266.56,123.77,123.75,8.0818]
[1741621005484,266.6,123.83,123.71,46.18]
[1741621005776,266.6,123.83,123.72,8.197]
[1741621005960,266.6,123.83,123.72,4.0691]
[1741621006167,266.6,123.83,123.71,46.18]
[1741621006470,0.05338859,123.79,123.76,0.05333937]
[1741621006671,8.0808,123.78,123.76,0.05333937]
[1741621007162,46.16,123.77,123.76,0.05333937]
[1741621007368,46.16,123.77,123.68,54.0491]
[1741621007567,46.16,123.77,123.59,675.6]
[1741621007763,46.16,123.77,123.73,8.0833]
[1741621007962,46.16,123.8,123.73,8.0833]
[1741621008269,46.16,123.8,123.69,46.16]
[1741621008469,0.05509133,123.78,123.75,0.06190625]
[1741621009270,266.6,123.83,123.75,0.06190625]
[1741621009474,312.76,123.89,123.73,46.16]
[1741621009671,266.6,123.89,123.73,238.16]
[1741621010576,266.6,123.89,123.8,0.05290222]
[1741621010776,266.6,123.89,123.81,46.16]
[1741621011571,266.6,123.89,123.84,8.076]
[1741621011872,0.05987141,123.86,123.84,8.13273371]
[1741621012074,0.05987141,123.86,123.85,8.0757]
[1741621012272,7.141e-05,123.86,123.85,54.2357]
[1741621012472,7.141e-05,123.86,123.85,56.6557]
[1741621012669,7.141e-05,123.86,123.85,118.6557]
[1741621013270,44.44602632,123.94,123.93,8.0705]
[1741621013575,46.14,123.98,123.85,62.0]
[1741621014275,46.14,123.98,123.87,8.0742]
[1741621014481,0.05514534,123.93,123.9,0.05746457]
[1741621014779,266.59514534,123.93,123.85,62.0]
[1741621014982,266.59514534,123.93,123.9,0.05566514]
[1741621015276,266.59314713,123.93,123.77,458.54]
[1741621015579,8.0724,123.91,123.78,46.12]
[1741621016474,266.54,123.93,123.83,8.0765]
[1741621016677,0.05783129,123.85,123.83,0.05223359]
[1741621016975,0.05783129,123.85,123.81,46.12]
[1741621016976,8.0725,123.9,123.81,46.12]
[1741621017172,0.05598924,123.85,123.83,0.06170912]
[1741621017368,46.1,123.9,123.79,8.0794]
[1741621017576,8.12712632,123.85,123.83,0.06058034]
[1741621017875,46.1,123.86,123.83,0.06058034]
[1741621018071,8.0763,123.84,123.77,46.1]
[1741621018273,46.1,123.86,123.77,46.1]
[1741621018470,8.13416986,123.82,123.8,0.05863743]
[1741621019177,8.0783,123.81,123.8,0.05863743]
[1741621020481,0.05646986,123.82,123.8,0.05863743]
[1741621021576,54.1783,123.81,123.8,3.743e-05]
[1741621021783,48.52,123.81,123.67,46.1]
[1741621022082,8.0813,123.77,123.67,46.1]
[1741621022386,3.9436,123.76,123.67,46.1]
[1741621022586,3.9436,123.76,123.75,8.0822]
[1741621022775,8.1054,123.8,123.74,46.1]
[1741621022975,0.05292567,123.77,123.74,0.050985]
[1741621023785,0.05292567,123.77,123.74,62.050985]
[1741621024086,0.05292567,123.77,123.74,0.050985]
[1741621024283,0.05292567,123.77,123.75,46.08]
[1741621024478,2.567e-05,123.77,123.75,46.08]
[1741621024683,266.52,123.89,123.75,240.5]
[1741621024987,267.92577661,123.91,123.75,238.08]
[1741621025779,0.0563264,123.84,123.82,0.05330752]
[1741621025981,267.92577661,123.91,123.8,46.1]
[1741621026285,0.05569459,123.84,123.82,0.05277815]
[1741621026479,0.05225989,123.87,123.8,46.1]
[1741621026781,0.05552201,123.85,123.82,0.05314111]
[1741621026975,0.05552201,123.85,123.8,46.1]
[1741621026976,46.08,123.89,123.8,116.1783]
[1741621027184,0.05850649,123.85,123.82,0.05654829]
[1741621028881,8.13460649,123.85,123.82,0.05654829]
[1741621029186,0.05850649,123.85,123.82,0.05654829]
[1741621029380,0.05850649,123.85,123.83,8.0766]
[1741621029578,0.05850649,123.85,123.82,0.05654829]
[1741621032281,6.49e-06,123.85,123.82,0.05654829]
[1741621032498,6.49e-06,123.85,123.84,8.0763]
[1741621032782,0.2453,123.9,123.84,46.06]
[1741621033989,0.06048451,123.88,123.86,0.05678172]
[1741621034189,0.06048451,123.88,123.87,8.0744]
[1741621034389,8.451e-05,123.88,123.87,8.0744]
[1741621034589,8.451e-05,123.9,123.86,0.05678172]
[1741621034790,266.46,123.97,123.86,2.47678172]
[1741621035086,8.0716,123.92,123.88,8.0732]
[1741621035288,8.0716,123.92,123.84,238.06]
[1741621035491,266.46,123.97,123.84,238.06]
[1741621035787,266.46,123.97,123.87,0.05582777]
[1741621035989,266.46,123.97,123.88,46.04]
[1741621036389,312.5,123.97,123.88,46.04]
[1741621036690,312.5,123.97,123.87,0.05582777]
[1741621036890,312.5,123.97,123.85,46.04]
[1741621037294,266.46,123.97,123.91,8.0715]
[1741621037484,266.46,123.97,123.9,46.02]
[1741621038085,8.0696,123.95,123.92,8.12585572]
[1741621038292,266.46,123.97,123.92,0.05515572]
[1741621039094,8.0689,123.96,123.92,8.12585572]
[1741621039285,266.46,123.97,123.92,0.05515572]
[1741621039487,8.0697,123.95,123.92,46.07515572]
[1741621039689,266.46,123.97,123.92,46.07515572]
[1741621039893,266.46,123.97,123.92,0.05515572]
[1741621040293,266.46,123.97,123.93,46.02]
[1741621041488,266.32,124.03,123.93,46.02]
[1741621041885,266.32,124.03,123.97,0.05735824]
[1741621042085,266.32,124.03,123.97,8.12465824]
[1741621042293,266.32,124.03,123.97,0.05735824]
[1741621042796,266.32,124.03,123.97,46.05735824]
[1741621043095,8.0669,123.99,123.97,0.05735824]
[1741621043295,266.32,124.03,123.97,0.05735824]
[1741621043691,1.40359368,124.09,123.97,0.05735824]
[1741621043692,266.28,124.09,124.02,8.0646]
[1741621043886,266.28,124.09,124.0,46.0]
[1741621044591,266.28,124.09,124.03,0.06061167]
[1741621044791,8.0633,124.04,124.03,0.06061167]
[1741621044996,266.28,124.09,124.03,0.06061167]
[1741621045490,8.0633,124.04,124.03,0.06061167]
[1741621046398,8.0622,124.06,124.03,0.06061167]
[1741621046590,266.28,124.09,124.03,0.06061167]
[1741621047196,266.28,124.09,124.04,45.98]
[1741621047394,312.18,124.15,124.04,45.98]
[1741621047595,266.2,124.15,124.04,45.98]
[1741621047799,266.2,124.15,124.1,8.059]
[1741621047992,11.08966269,124.2,124.09,45.96]
[1741621048294,11.08966269,124.2,124.13,0.05231506]
[1741621048901,1.40223633,124.19,124.13,1.506e-05]
[1741621049088,45.94,124.18,124.0,45.94]
[1741621049294,189.20922286,124.17,124.01,8.0651]
[1741621049495,187.7279,124.17,123.98,196.2466]
[1741621049799,8.0665,124.0,123.98,4.2466]
[1741621049996,266.1,124.03,123.98,4.2466]
[1741621050498,0.05231506,124.02,123.99,0.05930547]
[1741621050690,8.0659,124.0,123.99,0.05930547]
[1741621050890,0.05231506,124.02,123.99,0.05930547]
[1741621052095,2.47231506,124.02,123.99,5.47e-06]
[1741621052296,8.0659,124.0,123.99,5.47e-06]
[1741621052794,0.05231506,124.02,123.99,5.47e-06]
[1741621054498,8.0659,124.0,123.99,5.47e-06]
[1741621055196,0.05231506,124.02,123.98,5.47e-06]
[1741621055397,8.0666,123.99,123.98,5.47e-06]
[1741621056198,266.1,124.01,123.98,5.47e-06]
[1741621058705,266.1,124.01,123.98,8.06710547]
[1741621059206,1.506e-05,124.02,123.98,5.47e-06]
[1741621059405,1.506e-05,124.02,123.98,2.42000547]
[1741621059606,1.506e-05,124.02,123.98,5.47e-06]
[1741621059803,1.506e-05,124.02,124.01,8.0653]
[1741621060000,1.506e-05,124.02,124.01,56.4053]
[1741621060702,1.506e-05,124.02,124.01,60.7013]
[1741621062107,1.506e-05,124.02,124.01,122.7013]
[1741621062303,1.506e-05,124.02,124.01,120.2813]
[1741621063105,1.506e-05,124.02,124.01,122.7013]
[1741621064509,1.506e-05,124.02,124.01,118.4053]
[1741621065405,1.506e-05,124.02,124.01,310.4053]
[1741621066306,266.12,124.14,124.01,302.34]
[1741621066507,266.12,124.14,124.01,237.92]
[1741621066804,274.1772,124.14,124.01,237.92]
[1741621067007,266.12,124.14,124.01,237.92]
[1741621067303,0.05225524,124.09,124.01,237.92]
[1741621067507,0.05225524,124.09,124.06,0.05163241]
[1741621067700,265.98,124.2,124.07,45.88]
[1741621067903,8.0544,124.18,124.08,7.9449]
[1741621068205,0.05930547,124.15,124.12,0.06026993]
[1741621068607,0.05930547,124.15,124.12,0.05364096]
[1741621069100,8.0575,124.13,124.12,0.05364096]
[1741621069310,45.93930547,124.15,124.07,45.88]
[1741621069604,45.86,124.18,124.07,107.88]
[1741621070408,0.05604707,124.14,124.11,0.05781392]
[1741621070803,8.0581,124.12,124.11,0.05781392]
[1741621072109,0.05604707,124.14,124.05,45.86]
[1741621072413,45.86,124.18,124.05,45.86]
[1741621073107,8.0601,124.09,124.05,45.86]
[1741621073308,0.05731984,124.13,124.1,0.05355054]
[1741621073503,265.92,124.12,124.05,8.0625]
[1741621073714,8.0612,124.08,124.05,8.0625]
[1741621074015,8.0612,124.08,124.05,8.0626]
[1741621074216,8.062,124.07,124.04,4.1848]
[1741621074410,8.062,124.07,124.04,62.0]
[1741621074610,0.05204868,124.07,124.04,0.06010934]
[1741621075007,4.868e-05,124.07,124.04,0.06010934]
[1741621075213,4.868e-05,124.07,124.06,8.062]
[1741621075410,4.868e-05,124.07,124.06,53.902]
[1741621075614,4.868e-05,124.07,124.04,0.06010934]
[1741621076715,4.868e-05,124.07,124.06,8.062]
[1741621076910,4.868e-05,124.07,124.06,53.902]
[1741621077112,4.868e-05,124.07,124.06,56.322]
[1741621077308,4.868e-05,124.07,124.06,53.902]
[1741621077508,4.868e-05,124.07,124.06,115.902]
[1741621078321,4.868e-05,124.07,124.06,70.062]
[1741621078511,4.868e-05,124.07,124.05,8.0624]
[1741621078711,4.868e-05,124.07,124.04,0.06010934]
[1741621079716,4.868e-05,124.07,124.04,194.48010934]
[1741621081429,4.868e-05,124.07,124.05,62.0]
[1741621081727,4.868e-05,124.07,124.06,45.82]
[1741621081923,4.868e-05,124.07,124.06,53.882]
[1741621082122,4.868e-05,124.07,124.06,56.302]
[1741621082626,4.868e-05,124.07,124.06,53.882]
[1741621083126,4.868e-05,124.07,124.06,8.062]
[1741621083420,4.868e-05,124.07,124.06,53.882]
[1741621084115,4.868e-05,124.07,124.04,0.06010934]
[1741621085026,8.0625,124.06,124.04,0.06010934]
[1741621085222,2.42004868,124.07,123.97,45.82]
[1741621085421,4.868e-05,124.07,123.97,45.82]
[1741621085628,8.0647,124.02,123.97,53.8877]
[1741621085823,265.88,124.01,123.96,83.89858033]
[1741621086423,265.88,124.01,123.97,0.0611947]
[1741621086624,0.05264137,124.0,123.97,0.0611947]
[1741621087127,8.067,123.99,123.97,0.0611947]
[1741621087328,45.8,123.98,123.89,12.3184]
[1741621087622,45.8,123.98,123.88,19.07613748]
[1741621088422,0.06052251,123.94,123.92,0.05805319]
[1741621088816,8.13052251,123.94,123.92,0.05805319]
[1741621089023,0.06052251,123.94,123.92,0.05805319]
[1741621089223,0.06052251,123.94,123.88,62.0]
[1741621089533,8.0725,123.9,123.84,8.0762]
[1741621089825,265.94,123.93,123.82,129.71858033]
[1741621090528,0.05384391,123.89,123.86,8.12791962]
[1741621090730,0.05384391,123.89,123.86,0.05341962]
[1741621091426,0.05384391,123.89,123.86,45.89341962]
[1741621091628,0.05384391,123.89,123.88,8.0737]
[1741621091927,45.84,123.98,123.86,45.89341962]
[1741621092120,270.2223,123.99,123.86,45.84]
[1741621092317,270.2223,123.99,123.87,4.2897]
[1741621092523,270.2223,123.99,123.88,62.0]
[1741621092724,45.84,123.98,123.88,66.1397]
[1741621092920,0.05313643,123.95,123.92,0.05092445]
[1741621093125,8.0698,123.94,123.92,0.05092445]
[1741621093318,0.05313643,123.95,123.92,0.05092445]
[1741621093520,45.82,123.94,123.81,3.941]
[1741621094131,8.0758,123.85,123.81,8.0782]
[1741621094333,266.12,123.88,123.79,45.84]
[1741621094532,311.96,123.88,123.79,45.84]
[1741621094722,0.06075139,123.85,123.82,0.05616789]
[1741621095127,0.06075139,123.85,123.84,8.0763]
[1741621095627,0.06075139,123.85,123.82,0.05616789]
[1741621097432,8.077,123.83,123.82,0.05616789]
[1741621097634,0.06075139,123.85,123.82,0.05616789]
[1741621098836,0.06075139,123.85,123.83,45.84]
[1741621099135,312.04,123.94,123.83,45.84]
[1741621099336,312.04,123.94,123.84,8.0544]
[1741621099534,312.04,123.94,123.84,12.1386]
[1741621099735,312.04,123.94,123.84,4.0625]
[1741621100439,0.05323216,123.9,123.88,0.05203634]
[1741621101639,0.05323216,123.9,123.89,8.0731]
[1741621101940,266.2,123.94,123.89,62.0]
[1741621102433,313.54447171,124.0,123.89,62.0]
[1741621102639,312.14,124.0,123.89,66.2172]
[1741621103033,8.0667,123.99,123.94,8.0692]
[1741621103236,0.05650281,123.96,123.93,0.06207515]
[1741621103638,0.05650281,123.96,123.95,8.0692]
[1741621103840,0.05650281,123.96,123.93,0.06207515]
[1741621104529,266.3,124.0,123.93,0.06207515]
[1741621105640,0.06031841,123.98,123.93,0.06207515]
[1741621105935,1.841e-05,123.98,123.97,8.0679]
[1741621106842,1.841e-05,123.98,123.96,45.82]
[1741621107038,1.841e-05,123.98,123.96,0.05749625]
[1741621107438,1.841e-05,123.98,123.96,8.12589625]
[1741621107742,1.841e-05,123.98,123.96,0.05749625]
[1741621108338,1.841e-05,123.98,123.97,8.0679]
[1741621108735,1.841e-05,123.98,123.97,80.8383]
[1741621109138,1.841e-05,123.98,123.97,78.4183]
[1741621109441,1.841e-05,123.98,123.97,80.8383]
[1741621109939,1.841e-05,123.98,123.97,78.4183]
[1741621110344,1.841e-05,123.98,123.97,80.8383]
[1741621111942,1.841e-05,123.98,123.97,126.6383]
[1741621112535,1.841e-05,123.98,123.97,124.2183]
[1741621112940,1.841e-05,123.98,123.97,78.4183]
[1741621113139,1.841e-05,123.98,123.97,124.2183]
[1741621113343,1.841e-05,123.98,123.97,107.8]
[1741621113542,1.841e-05,123.98,123.97,62.0]
[1741621113743,1.841e-05,123.98,123.96,0.05749625]
[1741621114536,1.841e-05,123.98,123.92,45.8]